[Event "Late-Titled-Tuesday-Blitz-June-04-2024"]
[Site "Chess.com"]
[Date "2024.06.04"]
[Round "5"]
[White "Eduard_Limonov"]
[Black "osh1ro"]
[Result "1-0"]
[WhiteElo "2832"]
[BlackElo "2620"]
[TimeControl "180+1"]
[EndTime "14:54:51 PDT"]
[Termination "Eduard_Limonov won by resignation"]

1. Nf3 {[%clk 0:03:00]} 1... Nf6 {[%clk 0:02:59.9]} 2. c4 {[%clk 0:03:00.3]}
2... e6 {[%clk 0:02:59.5]} 3. g3 {[%clk 0:03:00.3]} 3... d5 {[%clk 0:03:00]} 4.
Bg2 {[%clk 0:03:00.6]} 4... Be7 {[%clk 0:03:00.6]} 5. b3 {[%clk 0:03:00.5]} 5...
O-O {[%clk 0:03:01]} 6. O-O {[%clk 0:03:00.9]} 6... b6 {[%clk 0:03:00.5]} 7. Bb2
{[%clk 0:03:01.1]} 7... Bb7 {[%clk 0:03:00.6]} 8. e3 {[%clk 0:03:01.4]} 8... c5
{[%clk 0:02:59.7]} 9. Nc3 {[%clk 0:02:59.1]} 9... Nc6 {[%clk 0:02:57.9]} 10.
cxd5 {[%clk 0:02:58.9]} 10... Nxd5 {[%clk 0:02:57.7]} 11. Nxd5 {[%clk
0:02:58.6]} 11... Qxd5 {[%clk 0:02:58.6]} 12. d4 {[%clk 0:02:58.5]} 12... Rfd8
{[%clk 0:02:51.1]} 13. Ne5 {[%clk 0:02:53.5]} 13... Qd6 {[%clk 0:02:34.7]} 14.
Qf3 {[%clk 0:02:53]} 14... Nxe5 {[%clk 0:01:48.3]} 15. dxe5 {[%clk 0:02:52.9]}
15... Qd5 {[%clk 0:01:48.6]} 16. Qxd5 {[%clk 0:02:41.4]} 16... Bxd5 {[%clk
0:01:49.5]} 17. Rfd1 {[%clk 0:02:39.6]} 17... Bxg2 {[%clk 0:01:44.3]} 18. Kxg2
{[%clk 0:02:40.5]} 18... Rxd1 {[%clk 0:01:42.1]} 19. Rxd1 {[%clk 0:02:41.4]}
19... Rd8 {[%clk 0:01:42.5]} 20. Rxd8+ {[%clk 0:02:39.2]} 20... Bxd8 {[%clk
0:01:43.4]} 21. Kf3 {[%clk 0:02:39.4]} 21... Kf8 {[%clk 0:01:39.5]} 22. Ke4
{[%clk 0:02:38.4]} 22... Ke7 {[%clk 0:01:40.1]} 23. f4 {[%clk 0:02:31]} 23...
Kd7 {[%clk 0:01:39.7]} 24. g4 {[%clk 0:02:31.1]} 24... Kc6 {[%clk 0:01:30.3]}
25. f5 {[%clk 0:02:31.3]} 25... Bh4 {[%clk 0:01:20.8]} 26. Bc3 {[%clk
0:02:09.8]} 26... a6 {[%clk 0:01:18.1]} 27. Kf4 {[%clk 0:02:09.8]} 27... h6
{[%clk 0:01:09.6]} 28. Ke4 {[%clk 0:02:01.5]} 28... Kd7 {[%clk 0:00:48.8]} 29.
a4 {[%clk 0:01:56.2]} 29... Kc6 {[%clk 0:00:47.7]} 30. h3 {[%clk 0:01:50.3]}
30... b5 {[%clk 0:00:47.5]} 31. axb5+ {[%clk 0:01:50.1]} 31... Kxb5 {[%clk
0:00:32.1]} 32. Kd3 {[%clk 0:01:45.9]} 32... Bg5 {[%clk 0:00:19.7]} 33. Be1
{[%clk 0:01:40.8]} 33... Bd8 {[%clk 0:00:17.6]} 34. h4 {[%clk 0:01:39]} 34...
Bc7 {[%clk 0:00:16.9]} 35. Bc3 {[%clk 0:01:38.7]} 35... Bd8 {[%clk 0:00:15.5]}
36. h5 {[%clk 0:01:35.3]} 36... exf5 {[%clk 0:00:04.8]} 37. gxf5 {[%clk
0:01:35.6]} 37... f6 {[%clk 0:00:05.1]} 38. e4 {[%clk 0:00:59.3]} 38... a5
{[%clk 0:00:01.1]} 39. exf6 {[%clk 0:00:58.7]} 39... Bxf6 {[%clk 0:00:01]} 40.
e5 {[%clk 0:00:58.5]} 40... Be7 {[%clk 0:00:01.1]} 41. e6 {[%clk 0:00:54.1]}
41... a4 {[%clk 0:00:01.2]} 42. bxa4+ {[%clk 0:00:53.9]} 42... Kxa4 {[%clk
0:00:01.7]} 43. Bxg7 {[%clk 0:00:54.4]} 43... Kb3 {[%clk 0:00:01.7]} 44. f6
{[%clk 0:00:54.5]} 44... c4+ {[%clk 0:00:02.6]} 45. Ke4 {[%clk 0:00:54.5]} 45...
c3 {[%clk 0:00:02.4]} 46. fxe7 {[%clk 0:00:54.4]} 46... c2 {[%clk 0:00:03]} 47.
Bxh6 {[%clk 0:00:54.9]} 47... c1=Q {[%clk 0:00:03.9]} 48. Bxc1 {[%clk
0:00:54.8]} 1-0

[Event "Late-Titled-Tuesday-Blitz-June-04-2024"]
[Site "Chess.com"]
[Date "2024.06.04"]
[Round "5"]
[White "YurasovMat-2012"]
[Black "Sanan_Sjugirov"]
[Result "0-1"]
[WhiteElo "2596"]
[BlackElo "2936"]
[TimeControl "180+1"]
[EndTime "14:54:51 PDT"]
[Termination "Sanan_Sjugirov won on time"]

1. e4 {[%clk 0:03:00.9]} 1... e6 {[%clk 0:02:55.3]} 2. Nf3 {[%clk 0:02:58.9]}
2... d5 {[%clk 0:02:55.9]} 3. Nc3 {[%clk 0:02:58.3]} 3... Nf6 {[%clk 0:02:41.5]}
4. e5 {[%clk 0:02:57.5]} 4... Nfd7 {[%clk 0:02:42.1]} 5. Ne2 {[%clk 0:02:53.3]}
5... c5 {[%clk 0:02:41.4]} 6. c3 {[%clk 0:02:53.1]} 6... Nc6 {[%clk 0:02:39.5]}
7. d4 {[%clk 0:02:53]} 7... cxd4 {[%clk 0:02:29.9]} 8. cxd4 {[%clk 0:02:52.6]}
8... f6 {[%clk 0:02:29.5]} 9. Nf4 {[%clk 0:02:39.3]} 9... fxe5 {[%clk 0:01:47]}
10. Nxe6 {[%clk 0:02:36.3]} 10... Qb6 {[%clk 0:01:47.6]} 11. Nxf8 {[%clk
0:02:28.5]} 11... Rxf8 {[%clk 0:01:46.8]} 12. dxe5 {[%clk 0:01:55.1]} 12...
Ndxe5 {[%clk 0:01:44.8]} 13. Be2 {[%clk 0:01:54.3]} 13... Bg4 {[%clk 0:01:38.5]}
14. Be3 {[%clk 0:01:45.8]} 14... Qb4+ {[%clk 0:01:32.6]} 15. Bd2 {[%clk
0:01:35.1]} 15... Qe4 {[%clk 0:01:32.3]} 16. O-O {[%clk 0:01:02.4]} 16... Bxf3
{[%clk 0:01:20.7]} 17. gxf3 {[%clk 0:00:55.1]} 17... Nxf3+ {[%clk 0:01:21.6]}
18. Bxf3 {[%clk 0:00:54.1]} 18... Qxf3 {[%clk 0:01:22.5]} 19. Re1+ {[%clk
0:00:51.6]} 19... Kd7 {[%clk 0:01:21.7]} 20. Qxf3 {[%clk 0:00:51]} 20... Rxf3
{[%clk 0:01:21.1]} 21. Bc3 {[%clk 0:00:51.1]} 21... Raf8 {[%clk 0:01:12.6]} 22.
Rad1 {[%clk 0:00:50.1]} 22... R8f5 {[%clk 0:01:10.7]} 23. Rd2 {[%clk 0:00:45.2]}
23... g6 {[%clk 0:01:06.5]} 24. Red1 {[%clk 0:00:43.5]} 24... Kd6 {[%clk
0:01:05.9]} 25. Re2 {[%clk 0:00:33.8]} 25... Kc5 {[%clk 0:01:00.6]} 26. Rc2
{[%clk 0:00:23.3]} 26... Kd6 {[%clk 0:01:00.1]} 27. Re2 {[%clk 0:00:22.9]} 27...
a5 {[%clk 0:00:58.5]} 28. Kg2 {[%clk 0:00:20.5]} 28... a4 {[%clk 0:00:54.3]} 29.
Be1 {[%clk 0:00:11.3]} 29... R3f4 {[%clk 0:00:49.7]} 30. Bd2 {[%clk 0:00:10.4]}
30... Rg4+ {[%clk 0:00:48.9]} 31. Kh1 {[%clk 0:00:09.9]} 31... d4 {[%clk
0:00:43.3]} 32. b3 {[%clk 0:00:06.1]} 32... axb3 {[%clk 0:00:42.9]} 33. axb3
{[%clk 0:00:07]} 33... Kd5 {[%clk 0:00:42.8]} 34. h3 {[%clk 0:00:04.8]} 34...
Re4 {[%clk 0:00:41.5]} 35. Rxe4 {[%clk 0:00:02.5]} 35... Kxe4 {[%clk 0:00:42.4]}
36. Kg2 {[%clk 0:00:01.4]} 36... Ne5 {[%clk 0:00:41.3]} 37. Re1+ {[%clk
0:00:01.1]} 37... Kd5 {[%clk 0:00:41.2]} 38. Bc1 {[%clk 0:00:01.5]} 38... Nd3
{[%clk 0:00:41.3]} 39. Rd1 {[%clk 0:00:01.8]} 39... Nxf2 {[%clk 0:00:38.4]} 40.
Rf1 {[%clk 0:00:01.7]} 40... Ne4 {[%clk 0:00:37.9]} 0-1

[Event "Late-Titled-Tuesday-Blitz-June-04-2024"]
[Site "Chess.com"]
[Date "2024.06.04"]
[Round "5"]
[White "rdarruda"]
[Black "giovannibrandao7"]
[Result "1/2-1/2"]
[WhiteElo "2525"]
[BlackElo "2349"]
[TimeControl "180+1"]
[EndTime "14:54:51 PDT"]
[Termination "Game drawn by repetition"]

1. Nf3 {[%clk 0:02:50]} 1... Nf6 {[%clk 0:03:00.3]} 2. d4 {[%clk 0:02:49.1]}
2... g6 {[%clk 0:03:00.5]} 3. Nc3 {[%clk 0:02:48.6]} 3... d5 {[%clk 0:02:59.5]}
4. Bg5 {[%clk 0:02:48.6]} 4... Bg7 {[%clk 0:02:58.7]} 5. Bxf6 {[%clk 0:02:48.5]}
5... Bxf6 {[%clk 0:02:59.6]} 6. e4 {[%clk 0:02:48.5]} 6... dxe4 {[%clk
0:03:00.5]} 7. Nxe4 {[%clk 0:02:48.5]} 7... Bg7 {[%clk 0:03:00.8]} 8. Bc4 {[%clk
0:02:48.4]} 8... O-O {[%clk 0:03:00.6]} 9. O-O {[%clk 0:02:48.2]} 9... Bg4
{[%clk 0:02:53.6]} 10. c3 {[%clk 0:02:46.3]} 10... c6 {[%clk 0:02:53.1]} 11. h3
{[%clk 0:02:44.6]} 11... Bf5 {[%clk 0:02:52.8]} 12. Qe2 {[%clk 0:02:43]} 12...
Bxe4 {[%clk 0:02:22.7]} 13. Qxe4 {[%clk 0:02:42]} 13... e6 {[%clk 0:02:23.4]}
14. Rad1 {[%clk 0:02:39.4]} 14... Nd7 {[%clk 0:02:19.2]} 15. Rfe1 {[%clk
0:02:38.5]} 15... Qa5 {[%clk 0:02:14.6]} 16. h4 {[%clk 0:02:34]} 16... Nf6
{[%clk 0:02:09]} 17. Qe2 {[%clk 0:02:33.4]} 17... Rad8 {[%clk 0:02:01.8]} 18. g3
{[%clk 0:02:31]} 18... c5 {[%clk 0:01:59.7]} 19. dxc5 {[%clk 0:02:29.7]} 19...
Qxc5 {[%clk 0:02:00.2]} 20. Bb3 {[%clk 0:02:24.6]} 20... a6 {[%clk 0:01:39.2]}
21. Kg2 {[%clk 0:02:23.7]} 21... b5 {[%clk 0:01:33.9]} 22. a3 {[%clk 0:02:21.9]}
22... Nd5 {[%clk 0:01:33.2]} 23. Bxd5 {[%clk 0:02:17]} 23... Rxd5 {[%clk
0:01:34.1]} 24. Rxd5 {[%clk 0:02:16.1]} 24... Qxd5 {[%clk 0:01:31.8]} 25. Rd1
{[%clk 0:02:15.9]} 25... Qc6 {[%clk 0:01:26.2]} 26. Kg1 {[%clk 0:02:13]} 26...
h6 {[%clk 0:01:14.4]} 27. Ne5 {[%clk 0:02:11.3]} 27... Qc7 {[%clk 0:01:11.9]}
28. f4 {[%clk 0:01:53.4]} 28... Rd8 {[%clk 0:01:09.8]} 29. Rxd8+ {[%clk
0:01:47.4]} 29... Qxd8 {[%clk 0:01:10.7]} 30. Qd3 {[%clk 0:01:45.7]} 30... Qb6+
{[%clk 0:01:08.1]} 31. Kg2 {[%clk 0:01:45]} 31... Bxe5 {[%clk 0:01:02.2]} 32.
fxe5 {[%clk 0:01:45.9]} 32... Qc6+ {[%clk 0:01:01.1]} 33. Qf3 {[%clk 0:01:43.9]}
33... Qc5 {[%clk 0:00:52.7]} 34. Qe4 {[%clk 0:01:38.1]} 34... Kg7 {[%clk
0:00:50.5]} 35. Kf1 {[%clk 0:01:27.3]} 35... a5 {[%clk 0:00:29.8]} 36. Ke2
{[%clk 0:01:26.2]} 36... a4 {[%clk 0:00:29.5]} 37. Qe3 {[%clk 0:01:12.7]} 37...
Qc4+ {[%clk 0:00:27.6]} 38. Kd2 {[%clk 0:01:12.2]} 38... Qb3 {[%clk 0:00:24]}
39. Kc1 {[%clk 0:01:11.5]} 39... Qd5 {[%clk 0:00:21.3]} 40. Qf4 {[%clk
0:01:09.8]} 40... Qh1+ {[%clk 0:00:19]} 41. Kc2 {[%clk 0:01:09.7]} 41... Qg2+
{[%clk 0:00:19.1]} 42. Kb1 {[%clk 0:01:05.5]} 42... Qd5 {[%clk 0:00:18.1]} 43.
Qe3 {[%clk 0:00:53]} 43... Qd1+ {[%clk 0:00:13.5]} 44. Ka2 {[%clk 0:00:53.2]}
44... Qb3+ {[%clk 0:00:12.8]} 45. Ka1 {[%clk 0:00:53.2]} 45... Qd1+ {[%clk
0:00:08.3]} 46. Ka2 {[%clk 0:00:53.3]} 46... Qd5+ {[%clk 0:00:08.8]} 47. Ka1
{[%clk 0:00:53]} 47... h5 {[%clk 0:00:07.5]} 48. Qf4 {[%clk 0:00:50.8]} 48...
Qd1+ {[%clk 0:00:05.8]} 49. Ka2 {[%clk 0:00:51]} 49... Qd5+ {[%clk 0:00:06.1]}
50. Ka1 {[%clk 0:00:51.6]} 50... Qd1+ {[%clk 0:00:05.9]} 51. Ka2 {[%clk
0:00:51.8]} 51... Qd5+ {[%clk 0:00:05.8]} 52. Ka1 {[%clk 0:00:51.2]} 1/2-1/2

[Event "Late-Titled-Tuesday-Blitz-June-04-2024"]
[Site "Chess.com"]
[Date "2024.06.04"]
[Round "5"]
[White "penguingm1"]
[Black "slidingknight2775"]
[Result "1-0"]
[WhiteElo "2932"]
[BlackElo "2666"]
[TimeControl "180+1"]
[EndTime "14:54:52 PDT"]
[Termination "penguingm1 won by checkmate"]

1. d4 {[%clk 0:03:00.9]} 1... d5 {[%clk 0:02:59.8]} 2. Bf4 {[%clk 0:02:59.9]}
2... Nf6 {[%clk 0:02:57.8]} 3. e3 {[%clk 0:03:00.1]} 3... c5 {[%clk 0:02:56.7]}
4. Nf3 {[%clk 0:02:54.4]} 4... e6 {[%clk 0:02:53.3]} 5. Nbd2 {[%clk 0:02:53.9]}
5... Bd6 {[%clk 0:02:40.8]} 6. c3 {[%clk 0:02:52.5]} 6... Qc7 {[%clk 0:02:36.8]}
7. Bxd6 {[%clk 0:02:46.5]} 7... Qxd6 {[%clk 0:02:36.8]} 8. Ne5 {[%clk
0:02:47.4]} 8... O-O {[%clk 0:02:27.2]} 9. Bd3 {[%clk 0:02:47.3]} 9... Nc6
{[%clk 0:02:26]} 10. f4 {[%clk 0:02:47.6]} 10... Ne7 {[%clk 0:02:26.6]} 11. O-O
{[%clk 0:02:47.4]} 11... b6 {[%clk 0:02:17.1]} 12. Rf3 {[%clk 0:02:46.5]} 12...
Bb7 {[%clk 0:02:11.7]} 13. Rh3 {[%clk 0:02:45.2]} 13... Ne4 {[%clk 0:02:02.8]}
14. Bxe4 {[%clk 0:01:22.9]} 14... dxe4 {[%clk 0:02:03.7]} 15. Qh5 {[%clk
0:01:19.1]} 15... h6 {[%clk 0:02:02.1]} 16. Ndc4 {[%clk 0:00:58.6]} 16... Qc7
{[%clk 0:01:59.7]} 17. Ng4 {[%clk 0:00:50.5]} 17... Nf5 {[%clk 0:01:52.3]} 18.
Nce5 {[%clk 0:00:49.6]} 18... Ba6 {[%clk 0:01:35.6]} 19. Re1 {[%clk 0:00:26.5]}
19... Rfd8 {[%clk 0:01:15.5]} 20. Nf2 {[%clk 0:00:21.2]} 20... f6 {[%clk
0:00:35.9]} 21. Ng6 {[%clk 0:00:18.3]} 21... Qf7 {[%clk 0:00:30.2]} 22. Nxe4
{[%clk 0:00:16.4]} 22... Bb7 {[%clk 0:00:26.9]} 23. Nf2 {[%clk 0:00:16.8]} 23...
cxd4 {[%clk 0:00:17.8]} 24. exd4 {[%clk 0:00:17]} 24... Rd5 {[%clk 0:00:18.4]}
25. Qg4 {[%clk 0:00:13.6]} 25... Kh7 {[%clk 0:00:12.7]} 26. Nh4 {[%clk
0:00:12.8]} 26... Ne7 {[%clk 0:00:10.7]} 27. Qxe6 {[%clk 0:00:12.6]} 27... Qxe6
{[%clk 0:00:06.8]} 28. Rxe6 {[%clk 0:00:13.5]} 28... Ng6 {[%clk 0:00:04.5]} 29.
Nxg6 {[%clk 0:00:13.8]} 29... Kxg6 {[%clk 0:00:05.4]} 30. Re7 {[%clk 0:00:14.3]}
30... Ba6 {[%clk 0:00:03.2]} 31. Rg3+ {[%clk 0:00:14.8]} 31... Kf5 {[%clk
0:00:03.9]} 32. Rgxg7 {[%clk 0:00:15.5]} 32... Rc8 {[%clk 0:00:03.1]} 33. Re4
{[%clk 0:00:15.7]} 33... Bd3 {[%clk 0:00:02.1]} 34. g4# {[%clk 0:00:16]} 1-0

[Event "Late-Titled-Tuesday-Blitz-June-04-2024"]
[Site "Chess.com"]
[Date "2024.06.04"]
[Round "5"]
[White "Zampronha1971"]
[Black "carloseduar100"]
[Result "0-1"]
[WhiteElo "2404"]
[BlackElo "2271"]
[TimeControl "180+1"]
[EndTime "14:54:56 PDT"]
[Termination "carloseduar100 won on time"]

1. e4 {[%clk 0:03:00.9]} 1... e6 {[%clk 0:02:48.6]} 2. d4 {[%clk 0:03:00]} 2...
d5 {[%clk 0:02:49.5]} 3. Nc3 {[%clk 0:03:00.1]} 3... Nf6 {[%clk 0:02:49.7]} 4.
e5 {[%clk 0:03:00.1]} 4... Nfd7 {[%clk 0:02:50]} 5. f4 {[%clk 0:03:00.7]} 5...
c5 {[%clk 0:02:50.1]} 6. Nf3 {[%clk 0:03:01.2]} 6... Nc6 {[%clk 0:02:50.4]} 7.
Be3 {[%clk 0:03:01.5]} 7... Qb6 {[%clk 0:02:49.8]} 8. Na4 {[%clk 0:03:00.2]}
8... Qc7 {[%clk 0:02:49.8]} 9. dxc5 {[%clk 0:02:55.6]} 9... Qa5+ {[%clk
0:02:47]} 10. c3 {[%clk 0:02:55]} 10... b5 {[%clk 0:02:47.2]} 11. cxb6 {[%clk
0:02:53.1]} 11... axb6 {[%clk 0:02:47.1]} 12. b4 {[%clk 0:01:59]} 12... Nxb4
{[%clk 0:01:51.7]} 13. cxb4 {[%clk 0:01:58.3]} 13... Bxb4+ {[%clk 0:01:51.9]}
14. Kf2 {[%clk 0:01:58.1]} 14... Qxa4 {[%clk 0:01:52.1]} 15. Qxa4 {[%clk
0:01:57]} 15... Rxa4 {[%clk 0:01:53]} 16. Bb5 {[%clk 0:01:41.6]} 16... Ra3
{[%clk 0:01:52.4]} 17. Bxb6 {[%clk 0:01:30.9]} 17... O-O {[%clk 0:01:48.4]} 18.
Bxd7 {[%clk 0:00:53.5]} 18... Bxd7 {[%clk 0:01:48.2]} 19. Rhc1 {[%clk
0:00:53.6]} 19... Rb8 {[%clk 0:01:44.9]} 20. Bc5 {[%clk 0:00:50.1]} 20... Bxc5+
{[%clk 0:01:43.1]} 21. Rxc5 {[%clk 0:00:49.5]} 21... Rb2+ {[%clk 0:01:43.2]} 22.
Kg3 {[%clk 0:00:49.6]} 22... Raxa2 {[%clk 0:01:43.4]} 23. Rxa2 {[%clk
0:00:46.9]} 23... Rxa2 {[%clk 0:01:44.3]} 24. Rc7 {[%clk 0:00:36.4]} 24... Be8
{[%clk 0:01:44.7]} 25. Nd4 {[%clk 0:00:35.2]} 25... Ra4 {[%clk 0:01:23.8]} 26.
Rc8 {[%clk 0:00:30.5]} 26... Kf8 {[%clk 0:01:23.7]} 27. Nb5 {[%clk 0:00:30]}
27... Rc4 {[%clk 0:01:15.1]} 28. Ra8 {[%clk 0:00:17.2]} 28... Ke7 {[%clk
0:00:58.3]} 29. Nd6 {[%clk 0:00:15.6]} 29... Bd7 {[%clk 0:00:58]} 30. Nxc4
{[%clk 0:00:14.1]} 30... dxc4 {[%clk 0:00:58.2]} 31. Kf2 {[%clk 0:00:14]} 31...
Bc6 {[%clk 0:00:57.3]} 32. Ra7+ {[%clk 0:00:14.3]} 32... Ke8 {[%clk 0:00:56.8]}
33. Ke3 {[%clk 0:00:07.6]} 33... Bxg2 {[%clk 0:00:56.5]} 34. Kd4 {[%clk
0:00:08.2]} 34... Bd5 {[%clk 0:00:55.5]} 35. Rc7 {[%clk 0:00:06.6]} 35... g6
{[%clk 0:00:55.3]} 36. h4 {[%clk 0:00:06.3]} 36... Kf8 {[%clk 0:00:55]} 37. Kc5
{[%clk 0:00:05.1]} 37... Kg7 {[%clk 0:00:55.3]} 38. Kd6 {[%clk 0:00:05.4]} 38...
Kf8 {[%clk 0:00:48.2]} 39. Rc8+ {[%clk 0:00:02.5]} 39... Kg7 {[%clk 0:00:48.7]}
40. Ke7 {[%clk 0:00:03]} 40... g5 {[%clk 0:00:40.2]} 0-1

[Event "Late-Titled-Tuesday-Blitz-June-04-2024"]
[Site "Chess.com"]
[Date "2024.06.04"]
[Round "5"]
[White "Evan_Attaker"]
[Black "jefferyx"]
[Result "0-1"]
[WhiteElo "2696"]
[BlackElo "3080"]
[TimeControl "180+1"]
[EndTime "14:54:57 PDT"]
[Termination "jefferyx won by checkmate"]

1. a3 {[%clk 0:02:56.6]} 1... d5 {[%clk 0:02:58.8]} 2. Nf3 {[%clk 0:02:52.5]}
2... Nf6 {[%clk 0:02:58.8]} 3. c4 {[%clk 0:02:49.4]} 3... d4 {[%clk 0:02:58.8]}
4. b4 {[%clk 0:02:48.3]} 4... c5 {[%clk 0:02:58.8]} 5. Bb2 {[%clk 0:02:44.3]}
5... Nc6 {[%clk 0:02:57.3]} 6. e3 {[%clk 0:02:42.5]} 6... e5 {[%clk 0:02:13.6]}
7. b5 {[%clk 0:02:40.4]} 7... e4 {[%clk 0:02:14.2]} 8. bxc6 {[%clk 0:02:39.2]}
8... exf3 {[%clk 0:02:15.1]} 9. exd4 {[%clk 0:02:09.7]} 9... Qe7+ {[%clk
0:02:13.9]} 10. Be2 {[%clk 0:02:07.6]} 10... fxe2 {[%clk 0:02:07.3]} 11. Qa4
{[%clk 0:02:05.4]} 11... b6 {[%clk 0:01:31.8]} 12. d5 {[%clk 0:01:56]} 12... Qe4
{[%clk 0:01:28.4]} 13. Nc3 {[%clk 0:01:52.5]} 13... Qxg2 {[%clk 0:01:26.3]} 14.
Kxe2 {[%clk 0:01:36]} 14... Bg4+ {[%clk 0:01:26]} 15. Kd3 {[%clk 0:01:36.3]}
15... Qf3+ {[%clk 0:01:25.1]} 16. Kc2 {[%clk 0:01:35.1]} 16... Bd6 {[%clk
0:01:17.3]} 17. Rhe1+ {[%clk 0:01:31.7]} 17... Kf8 {[%clk 0:01:17.1]} 18. Nb5
{[%clk 0:01:26.3]} 18... Bf5+ {[%clk 0:01:15.1]} 19. Kc1 {[%clk 0:01:23.4]}
19... Qxf2 {[%clk 0:01:10.3]} 20. Rd1 {[%clk 0:01:12.1]} 20... Qxh2 {[%clk
0:01:00.5]} 21. Qa6 {[%clk 0:01:06]} 21... Bc8 {[%clk 0:00:55.9]} 22. Qa4 {[%clk
0:01:03.5]} 22... Ne8 {[%clk 0:00:46.3]} 23. Re1 {[%clk 0:01:01.1]} 23... Bf4
{[%clk 0:00:31.2]} 24. Bc3 {[%clk 0:00:47.8]} 24... a6 {[%clk 0:00:30.7]} 25. c7
{[%clk 0:00:19.8]} 25... Bd7 {[%clk 0:00:28.4]} 26. Rb1 {[%clk 0:00:09.9]} 26...
Nxc7 {[%clk 0:00:27.8]} 27. d6 {[%clk 0:00:09]} 27... Bxd6 {[%clk 0:00:26.3]}
28. Qc2 {[%clk 0:00:05.8]} 28... axb5 {[%clk 0:00:26.2]} 29. cxb5 {[%clk
0:00:05.9]} 29... Nxb5 {[%clk 0:00:24.7]} 30. Rxb5 {[%clk 0:00:05.5]} 30... Bxb5
{[%clk 0:00:24.4]} 31. Qb2 {[%clk 0:00:06.4]} 31... Qg3 {[%clk 0:00:22.7]} 32.
Re3 {[%clk 0:00:03.5]} 32... Qg1+ {[%clk 0:00:21.6]} 33. Kc2 {[%clk 0:00:04.2]}
33... Ba4+ {[%clk 0:00:22.2]} 34. Kd3 {[%clk 0:00:04.6]} 34... Qf1+ {[%clk
0:00:22.8]} 35. Ke4 {[%clk 0:00:04.5]} 35... Bc6# {[%clk 0:00:22]} 0-1

[Event "Late-Titled-Tuesday-Blitz-June-04-2024"]
[Site "Chess.com"]
[Date "2024.06.04"]
[Round "5"]
[White "VirtualCoach"]
[Black "ManMish2"]
[Result "0-1"]
[WhiteElo "2219"]
[BlackElo "2632"]
[TimeControl "180+1"]
[EndTime "14:54:59 PDT"]
[Termination "ManMish2 won on time"]

1. e4 {[%clk 0:03:00.9]} 1... e5 {[%clk 0:02:59.7]} 2. Nf3 {[%clk 0:03:00.4]}
2... Nc6 {[%clk 0:02:59.8]} 3. Bb5 {[%clk 0:03:00.9]} 3... a6 {[%clk 0:02:59]}
4. Ba4 {[%clk 0:03:00.8]} 4... Nf6 {[%clk 0:02:58.5]} 5. O-O {[%clk 0:03:00.2]}
5... Nxe4 {[%clk 0:02:58.8]} 6. d4 {[%clk 0:02:59.9]} 6... b5 {[%clk 0:02:58.8]}
7. Bb3 {[%clk 0:02:59.5]} 7... d5 {[%clk 0:02:59.4]} 8. dxe5 {[%clk 0:02:57.1]}
8... Be6 {[%clk 0:02:59.6]} 9. Nbd2 {[%clk 0:02:56.6]} 9... Bc5 {[%clk 0:02:59]}
10. c3 {[%clk 0:02:53.9]} 10... O-O {[%clk 0:02:57.6]} 11. Bc2 {[%clk
0:02:52.9]} 11... Nxf2 {[%clk 0:02:57.8]} 12. Rxf2 {[%clk 0:02:50.8]} 12... f6
{[%clk 0:02:58.1]} 13. exf6 {[%clk 0:02:36.5]} 13... Bxf2+ {[%clk 0:02:57.2]}
14. Kxf2 {[%clk 0:02:36.3]} 14... Qxf6 {[%clk 0:02:57.7]} 15. Kg1 {[%clk
0:02:32.3]} 15... Rae8 {[%clk 0:02:56.7]} 16. Bd3 {[%clk 0:02:15.9]} 16... Bg4
{[%clk 0:02:33.7]} 17. Qc2 {[%clk 0:02:15.5]} 17... Re1+ {[%clk 0:01:17]} 18.
Kf2 {[%clk 0:02:14.9]} 18... Qh4+ {[%clk 0:01:15.4]} 19. g3 {[%clk 0:01:56.4]}
19... Qxh2+ {[%clk 0:01:13.2]} 20. Kxe1 {[%clk 0:01:55.8]} 20... Qxg3+ {[%clk
0:00:40.4]} 21. Kd1 {[%clk 0:01:10]} 21... Qg1+ {[%clk 0:00:26.8]} 22. Ke2
{[%clk 0:00:45.2]} 22... Re8+ {[%clk 0:00:21.9]} 23. Ne4 {[%clk 0:00:15.5]}
23... Qg2+ {[%clk 0:00:14.1]} 24. Ke1 {[%clk 0:00:13.5]} 24... Qxf3 {[%clk
0:00:13.6]} 25. Bd2 {[%clk 0:00:08.4]} 25... Qg3+ {[%clk 0:00:08.3]} 26. Kf1
{[%clk 0:00:04.3]} 26... dxe4 {[%clk 0:00:07.5]} 27. Bxe4 {[%clk 0:00:04.5]}
27... Rf8+ {[%clk 0:00:07.6]} 28. Bf5 {[%clk 0:00:01.8]} 28... Rxf5+ {[%clk
0:00:07.4]} 29. Qxf5 {[%clk 0:00:01.9]} 29... Bxf5 {[%clk 0:00:08.3]} 0-1

[Event "Late-Titled-Tuesday-Blitz-June-04-2024"]
[Site "Chess.com"]
[Date "2024.06.04"]
[Round "5"]
[White "Mikhal867"]
[Black "Pig-filth"]
[Result "0-1"]
[WhiteElo "2499"]
[BlackElo "2324"]
[TimeControl "180+1"]
[EndTime "14:55:03 PDT"]
[Termination "Pig-filth won on time"]

1. d4 {[%clk 0:02:47.9]} 1... g6 {[%clk 0:02:52]} 2. e4 {[%clk 0:02:47.5]} 2...
d6 {[%clk 0:02:48.3]} 3. Nc3 {[%clk 0:02:46.7]} 3... c6 {[%clk 0:02:43.1]} 4. f4
{[%clk 0:02:46.4]} 4... d5 {[%clk 0:02:40.8]} 5. e5 {[%clk 0:02:45.1]} 5... h5
{[%clk 0:02:37.2]} 6. Bd3 {[%clk 0:02:44]} 6... Nh6 {[%clk 0:02:31]} 7. h3
{[%clk 0:02:43.6]} 7... Na6 {[%clk 0:02:26]} 8. Nf3 {[%clk 0:02:42.6]} 8... Nb4
{[%clk 0:02:23.3]} 9. Nh4 {[%clk 0:02:06.1]} 9... Nxd3+ {[%clk 0:02:12.7]} 10.
Qxd3 {[%clk 0:02:05.7]} 10... Nf5 {[%clk 0:02:09.3]} 11. Nxf5 {[%clk 0:02:02.5]}
11... Bxf5 {[%clk 0:02:10.1]} 12. Qe2 {[%clk 0:02:02.7]} 12... Qb6 {[%clk
0:02:04.4]} 13. Qf2 {[%clk 0:01:53.3]} 13... e6 {[%clk 0:02:03.2]} 14. O-O
{[%clk 0:01:45.1]} 14... O-O-O {[%clk 0:02:00]} 15. Na4 {[%clk 0:01:19.7]} 15...
Qa5 {[%clk 0:01:51.6]} 16. b3 {[%clk 0:01:18.1]} 16... Be7 {[%clk 0:01:48.4]}
17. Bd2 {[%clk 0:01:14.7]} 17... Qc7 {[%clk 0:01:47.3]} 18. Qe1 {[%clk
0:01:11.1]} 18... Bxc2 {[%clk 0:01:38.1]} 19. Rc1 {[%clk 0:01:10.6]} 19... Be4
{[%clk 0:01:35]} 20. Ba5 {[%clk 0:01:09.7]} 20... b6 {[%clk 0:01:30.9]} 21. Bb4
{[%clk 0:01:10]} 21... Kb7 {[%clk 0:01:26.9]} 22. Qc3 {[%clk 0:00:59.7]} 22...
Rc8 {[%clk 0:01:23.1]} 23. Bxe7 {[%clk 0:00:55.5]} 23... Qxe7 {[%clk 0:01:22.3]}
24. b4 {[%clk 0:00:53.9]} 24... Rhg8 {[%clk 0:01:16.7]} 25. Qd2 {[%clk
0:00:38.5]} 25... Bf5 {[%clk 0:01:09.8]} 26. Rf3 {[%clk 0:00:19.4]} 26... g5
{[%clk 0:01:02]} 27. Ra3 {[%clk 0:00:18.9]} 27... gxf4 {[%clk 0:00:57.2]} 28.
Qxf4 {[%clk 0:00:19]} 28... Rg6 {[%clk 0:00:52.7]} 29. Kh2 {[%clk 0:00:18.3]}
29... Rcg8 {[%clk 0:00:46.8]} 30. Rg1 {[%clk 0:00:18.2]} 30... Qxb4 {[%clk
0:00:41.7]} 31. Qe3 {[%clk 0:00:18.1]} 31... Rg3 {[%clk 0:00:36.8]} 32. Qxg3
{[%clk 0:00:04.7]} 32... Rxg3 {[%clk 0:00:35.3]} 33. Rxg3 {[%clk 0:00:04.7]}
33... Qxa4 {[%clk 0:00:35.8]} 34. Rg7 {[%clk 0:00:04]} 34... Bg6 {[%clk
0:00:25.1]} 35. Rf1 {[%clk 0:00:02.5]} 35... Qxd4 {[%clk 0:00:22.5]} 0-1